bitfinex-derivatives/quotes_ETHF0:USTF0_20250524
["timestamp","ask_amount","ask_price","bid_price","bid_amount"]
[1748045285537,0.20575681,2533.6,2533.5,2.84927]
[1748045286347,0.14909626,2533.7,2533.6,0.78924]
[1748045286550,0.35488736,2533.7,2533.6,0.78924]
[1748045287143,7.36e-06,2533.7,2533.6,0.78924]
[1748045287541,0.07550362,2533.7,2533.6,0.78924]
[1748045288133,3.62e-06,2533.7,2533.6,0.78924]
[1748045288750,3.62e-06,2533.7,2533.6,1.10920604]
[1748045289846,3.62e-06,2533.7,2533.6,6.10920604]
[1748045290356,2.35754943,2534.1,2534.0,0.78911]
[1748045290552,2.3565358,2534.8,2534.1,3.94542]
[1748045290849,2.3565358,2534.8,2534.4,0.78897]
[1748045291046,2.3565358,2534.8,2534.0,3.2078]
[1748045291047,1.97232,2534.6,2534.0,3.2078]
[1748045291245,1.97232,2534.6,2533.8,0.7950878]
[1748045291246,0.78913,2534.0,2533.8,0.0059278]
[1748045291443,3.2078,2534.4,2533.8,0.0059278]
[1748045291444,2.0764,2533.9,2533.8,0.7950978]
[1748045291952,2.86554,2533.9,2533.8,0.0059278]
[1748045292646,2.0764,2533.9,2533.8,0.7950978]
[1748045293044,2.86554,2533.9,2533.8,0.0059278]
[1748045293242,0.78927,2533.5,2533.4,2.0866]
[1748045293446,3.99707,2533.5,2533.4,2.0866]
[1748045293849,0.07549626,2533.7,2533.4,5.2944]
[1748045294045,2.1134,2533.6,2533.5,0.78927]
[1748045294349,0.07549626,2533.7,2533.6,0.78924]
[1748045294852,3.14339924,2533.9,2533.6,5.0]
[1748045295148,2.1134,2534.5,2534.4,0.78899]
[1748045295650,2.1134,2534.5,2534.3,3.2078]
[1748045295850,2.1134,2534.5,2534.3,5.2431]
[1748045296252,2.1134,2534.5,2534.2,21.428]
[1748045296455,2.1134,2534.5,2534.3,3.2078]
[1748045296663,2.1134,2534.5,2534.4,0.78899]
[1748045297453,2.1134,2534.5,2534.3,3.2078]
[1748045297646,3.2078,2534.9,2534.3,3.2078]
[1748045297847,0.78894,2534.6,2534.4,2.0107]
[1748045298055,2.0719,2534.5,2534.4,2.79968]
[1748045298956,2.0719,2534.5,2534.3,0.789]
[1748045299454,2.86086,2534.5,2534.3,0.789]
[1748045299753,2.14739626,2534.5,2534.3,0.78899]
[1748045300055,2.14739626,2534.5,2534.4,0.78899]
[1748045300255,2.14739626,2534.5,2534.3,0.789]
[1748045300555,0.07549626,2534.5,2534.4,3.99679]
[1748045302153,0.07549626,2534.5,2534.4,4.30488436]
[1748045302356,0.07549626,2534.5,2534.4,5.51230107]
[1748045304253,6.26e-06,2534.5,2534.4,5.51230107]
[1748045307262,6.26e-06,2534.5,2534.4,5.20420671]
[1748045307867,6.26e-06,2534.5,2534.4,44.38420671]
[1748045308257,6.26e-06,2534.5,2534.4,26.93547192]
[1748045308464,2.33833527,2535.0,2534.9,0.78883]
[1748045308465,2.33753527,2535.0,2534.9,0.78883]
[1748045308664,3.11778036,2535.3,2535.2,0.78874]
[1748045308859,3.11778036,2535.3,2535.2,21.75454]
[1748045309560,0.65087704,2535.8,2535.3,1.9717]
[1748045309762,0.65087704,2535.8,2535.7,3.99638]
[1748045309965,2.72347704,2535.8,2535.7,3.99638]
[1748045310861,2.72347704,2535.8,2535.7,4.31335952]
[1748045311154,1.43942704,2535.8,2535.7,3.2078]
[1748045311354,0.78871,2535.3,2535.2,1.20741671]
[1748045311555,5.2258,2535.7,2535.2,0.78874]
[1748045311766,7.1973,2535.7,2534.8,4.77115872]
[1748045311968,5.2258,2535.7,2535.1,3.2078]
[1748045312360,0.7888,2535.0,2534.8,1.56335872]
[1748045312560,3.2078,2535.3,2534.7,0.0059278]
[1748045312766,2.018,2534.9,2534.7,0.7948078]
[1748045313069,2.018,2534.9,2534.7,0.0059278]
[1748045313575,2.018,2534.9,2534.8,0.78887]
[1748045313870,2.80685,2534.9,2534.7,0.0059278]
[1748045314069,0.78887,2534.8,2534.7,0.0059278]
[1748045314268,2.80687,2534.8,2534.7,0.0059278]
[1748045316469,2.018,2534.8,2534.7,0.0059278]
[1748045316872,2.80687,2534.8,2534.7,0.0059278]
[1748045317172,7.80687,2534.8,2534.7,0.0059278]
[1748045317478,0.78897,2534.5,2534.3,0.78902]
[1748045317672,2.83159,2534.4,2534.2,3.2078]
[1748045317966,0.00588845,2535.0,2534.2,3.2078]
[1748045318276,2.0426,2534.9,2534.8,0.78887]
[1748045318973,2.0426,2534.9,2534.8,22.20787]
[1748045319183,0.00588845,2535.0,2534.9,0.78884]
[1748045319382,2.0426,2535.4,2535.3,0.78871]
[1748045319563,2.0426,2535.4,2535.3,25.35951]
[1748045320078,0.65087704,2535.5,2535.4,0.78868]
[1748045320375,0.65087704,2535.5,2535.4,20.41688]
[1748045321374,1.05181183,2535.7,2535.6,0.78862]
[1748045321569,1.3046951,2536.0,2535.9,0.78853]
[1748045321871,1.3046951,2536.0,2535.9,3.99633]
[1748045322668,2.0931951,2536.0,2535.9,3.2078]
[1748045322877,1.3046951,2536.0,2535.9,0.78853]
[1748045323374,1.3046951,2536.0,2535.9,3.99633]
[1748045323668,1.3046951,2536.0,2535.8,23.4313]
[1748045323875,2.81143,2535.9,2535.8,2.0733]
[1748045324469,2.0229,2535.9,2535.8,2.0733]
[1748045325069,2.81143,2535.9,2535.8,2.0733]
[1748045325269,2.0229,2535.9,2535.8,2.0733]
[1748045325475,2.0229,2535.9,2535.8,2.86186]
[1748045325673,2.0229,2535.9,2535.8,2.0733]
[1748045325874,2.0229,2535.9,2535.8,6.06966]
[1748045326277,2.0229,2535.9,2535.8,5.2811]
[1748045326471,2.0229,2535.9,2535.8,2.0733]
[1748045327073,6.01923,2535.9,2535.8,2.0733]
[1748045327279,2.0229,2535.9,2535.8,2.0733]
[1748045327476,2.0229,2535.9,2535.8,2.86186]
[1748045327674,1.943,2536.6,2536.5,0.78834]
[1748045328073,1.943,2536.6,2536.4,0.78835]
[1748045328280,1.943,2536.6,2536.5,0.78834]
[1748045328779,0.78835,2536.5,2536.3,18.53939]
[1748045328981,1.9627,2536.5,2536.4,0.78837]
[1748045330301,5.2183,2537.1,2537.0,0.78818]
[1748045330480,7.1493,2537.1,2537.0,0.78818]
[1748045330781,7.93747,2537.1,2536.9,0.78819]
[1748045331083,0.78818,2537.0,2536.8,22.14323]
[1748045331280,0.78826,2536.8,2536.6,39.89329]
[1748045331476,1.931,2536.7,2536.6,39.89329]
[1748045332282,1.931,2536.7,2536.6,43.10109]
[1748045333982,5.2183,2537.1,2536.8,0.78823]
[1748045334195,1.8702,2536.9,2536.8,18.53625]
[1748045335886,1.8702,2536.9,2536.8,20.39215]
[1748045336888,1.8702,2536.9,2536.8,2.64415]
[1748045337080,6.8702,2536.9,2536.3,3.2078]
[1748045337280,1.8702,2536.9,2536.8,0.78825]
[1748045338686,1.8702,2536.9,2536.8,21.74205]
[1748045339683,1.8702,2536.9,2536.8,18.53325]
[1748045339889,3.2078,2537.4,2537.3,0.78809]
[1748045340080,0.78805,2537.5,2537.3,0.78809]
[1748045340081,3.13284202,2538.1,2537.3,39.095]
[1748045340281,3.13284202,2538.1,2537.3,3.2078]
[1748045340482,1.96993,2537.7,2537.1,0.00591599]
[1748045340697,3.7837,2537.6,2537.1,0.00591599]
[1748045340883,0.7881,2537.3,2537.1,0.79404599]
[1748045341086,1.8004,2537.5,2537.1,0.00591599]
[1748045341282,1.8004,2537.5,2537.4,0.78806]
[1748045341483,1.8004,2537.5,2537.4,3.99586]
[1748045341696,6.8004,2537.5,2537.1,3.21371599]
[1748045341986,1.8004,2537.5,2537.4,0.78806]
[1748045342182,1.3046951,2538.5,2538.3,0.78778]
[1748045342391,1.3046951,2538.5,2538.3,3.99558]
[1748045342587,3.1460951,2538.5,2538.3,3.99558]
[1748045342789,3.1460951,2538.5,2538.4,0.78775]
[1748045343188,1.8414,2538.5,2538.4,2.70795]
[1748045343487,2.23169202,2538.6,2538.5,0.78772]
[1748045343694,2.23169202,2538.6,2538.5,1.9202]
[1748045343986,9.07309202,2538.6,2537.7,3.2078]
[1748045344291,1.979,2538.5,2537.7,3.2078]
[1748045344489,1.979,2538.5,2538.0,3.2078]
[1748045344490,0.78785,2538.1,2538.0,3.2078]
[1748045344789,0.78782,2538.2,2537.8,0.78792]
[1748045344991,0.78792,2537.9,2537.7,3.2078]
[1748045345190,1.7861,2537.8,2537.7,3.2078]
[1748045345392,2.57404,2537.8,2537.7,3.2078]
[1748045345586,1.7861,2537.8,2537.4,25.71972987]
[1748045345787,0.788,2537.6,2537.4,4.37772987]
[1748045345989,2.57413,2537.5,2537.4,4.37772987]
[1748045346490,0.07549626,2537.5,2537.4,4.37772987]
[1748045346701,0.07549626,2537.5,2537.4,5.16578987]
[1748045347090,0.07549626,2537.5,2537.4,4.37772987]
[1748045347296,0.07549626,2537.5,2537.4,5.16578987]
[1748045347489,0.07549626,2537.5,2537.4,3.2078]
[1748045347490,0.86352626,2537.5,2537.4,3.2078]
[1748045347794,0.07549626,2537.5,2537.4,3.99586]
[1748045348184,0.07549626,2537.5,2537.4,8.99586]
[1748045348386,5.1268,2538.5,2537.4,10.17788]
[1748045348601,1.919,2538.0,2537.9,3.2078]
[1748045348799,1.919,2538.0,2537.9,3.9957]
[1748045349189,1.919,2538.0,2537.9,3.2078]
[1748045349690,1.919,2538.0,2537.9,3.9957]
[1748045350885,1.919,2538.0,2537.9,3.2078]
[1748045351192,1.919,2538.0,2537.9,24.4888]
[1748045351398,1.919,2538.0,2537.9,25.2767]
[1748045351597,1.919,2538.0,2537.9,3.2078]
[1748045351794,2.70687,2538.0,2537.9,3.2078]
[1748045351998,7.70687,2538.0,2537.9,3.2078]
[1748045352291,0.78803,2537.5,2537.4,3.2078]
[1748045352492,0.07549626,2537.5,2537.4,3.99585]
[1748045352998,0.07549626,2537.5,2537.4,25.27685]
[1748045353196,0.07549626,2537.5,2537.4,30.27685]
[1748045353409,6.26e-06,2537.5,2537.4,30.27685]
[1748045353696,1.9085,2538.2,2538.1,0.78784]
[1748045353893,1.9085,2538.2,2538.1,24.4888]
[1748045354394,0.78768,2538.7,2538.5,0.78771]
[1748045354599,0.7877,2538.6,2538.4,0.78773]
[1748045354788,2.62765,2538.5,2538.3,0.00591599]
[1748045355096,1.8399,2538.5,2538.3,0.00591599]
[1748045355293,1.8399,2538.5,2538.4,0.78775]
[1748045355684,1.8399,2538.5,2538.4,3.99555]
[1748045355889,3.12467018,2539.6,2538.5,1.96929]
[1748045356095,1.8399,2539.4,2539.1,3.2078]
[1748045356299,1.8399,2539.4,2539.2,39.80548]
[1748045356495,1.8399,2539.4,2539.3,0.78747]
[1748045356795,3.12467018,2539.6,2539.5,0.78741]
[1748045357095,3.12467018,2539.6,2539.5,3.2078]
[1748045357286,1.9117,2539.7,2539.4,39.014]
[1748045357797,1.9117,2539.7,2539.5,43.0092]
[1748045357986,1.9117,2539.7,2539.6,0.78738]
[1748045358698,1.9117,2539.7,2539.5,42.2218]
[1748045358997,1.9117,2539.7,2539.1,3.2078]
[1748045359198,1.9117,2539.7,2539.1,3.99532]
[1748045359497,0.78749,2539.3,2539.1,5.2657]
[1748045359699,2.6992,2539.2,2539.1,5.2657]
[1748045360093,1.9117,2539.2,2539.1,5.2657]
[1748045360388,2.6992,2539.2,2539.1,5.2657]
[1748045360601,0.78759,2538.9,2538.8,3.2078]
[1748045360897,1.9117,2539.2,2538.8,3.2078]
[1748045361097,1.9117,2539.2,2539.0,0.78754]
[1748045361499,2.69921,2539.2,2539.0,0.78754]
[1748045362201,0.78759,2538.9,2538.8,3.2078]
[1748045364705,0.78755,2539.1,2538.8,3.2078]
[1748045364998,0.78759,2538.9,2538.8,3.2078]
[1748045365396,2.75639,2538.9,2538.8,3.2078]
[1748045365601,8.93781,2538.9,2538.5,3.2078]
[1748045365799,0.78769,2538.6,2538.5,3.2078]
[1748045366697,5.78769,2538.6,2538.5,3.2078]
[1748045367102,7.72019,2538.6,2538.5,3.2078]
[1748045367305,0.78775,2538.4,2538.3,0.00591599]
[1748045367604,0.78775,2538.4,2537.7,2.35129872]
[1748045367605,0.7879,2537.9,2537.8,21.272]
[1748045368000,0.78789,2538.0,2537.8,21.272]
[1748045368304,1.9325,2537.9,2537.6,42.2118]
[1748045368498,0.00591599,2538.1,2537.7,3.72886]
[1748045368703,0.00591599,2538.1,2538.0,0.78787]
[1748045368903,0.00591599,2538.1,2538.0,2.54687]
[1748045372005,0.79375599,2538.1,2538.0,1.759]
[1748045372197,0.00591599,2538.1,2538.0,2.54687]
[1748045372402,0.78792,2537.9,2537.8,21.274]
[1748045372900,0.78789,2538.0,2537.8,0.78794]
[1748045373101,0.78789,2538.0,2537.8,22.06194]
[1748045373311,1.8499,2537.9,2537.8,22.06194]
[1748045373908,1.8499,2537.9,2537.8,23.97254]
[1748045374107,1.8499,2537.9,2537.8,2.69854]
[1748045374308,1.8499,2537.9,2537.8,23.97254]
[1748045374509,2.6378,2537.9,2537.8,1.9106]
[1748045374805,0.78797,2537.7,2537.6,0.00591599]
[1748045376715,0.78809,2537.3,2537.2,1.16992987]
[1748045377606,1.8592,2537.4,2537.3,0.78809]
[1748045377801,1.8592,2537.9,2537.8,0.78794]
[1748045378207,3.2078,2538.2,2538.0,0.78787]
[1748045378408,0.86925225,2538.1,2538.0,0.78787]
[1748045378702,1.84871225,2538.1,2538.0,0.78787]
[1748045379223,0.08141225,2538.1,2538.0,18.52187]
[1748045379518,0.08141225,2538.1,2538.0,20.41677]
[1748045380115,0.08141225,2538.1,2538.0,19.6289]
[1748045380417,0.08141225,2538.1,2538.0,41.65777]
[1748045383816,0.08141225,2538.1,2538.0,41.65577]
[1748045385311,2.25e-06,2538.1,2538.0,41.65577]
[1748045388016,2.25e-06,2538.1,2538.0,46.65577]
[1748045390216,0.00591599,2538.3,2538.2,0.78781]
[1748045390417,0.00591599,2538.3,2538.2,3.99561]
[1748045390720,0.00591599,2538.3,2538.2,42.96661]
[1748045392017,1.8825,2538.8,2538.2,42.96661]
[1748045392018,2.63664,2539.1,2538.5,1.96923]
[1748045392224,1.8825,2538.8,2538.7,0.78766]
[1748045392526,1.8825,2538.8,2538.7,22.02666]
[1748045393423,1.3046951,2539.5,2538.7,22.02666]
[1748045393424,25.93304376,2542.3,2540.7,3.93517]
[1748045393626,0.31590206,2542.7,2541.7,3.2078]
[1748045393925,0.31590206,2542.9,2542.6,3.2078]
[1748045394229,2.95153402,2543.2,2543.1,0.78629]
[1748045394424,3.15615259,2543.2,2543.1,3.99409]
[1748045395023,1.86697402,2543.2,2543.1,21.72609]
[1748045396121,0.17186977,2543.2,2543.1,21.72609]
[1748045397016,0.17186977,2543.2,2543.1,3.99409]
[1748045397232,0.17186977,2543.2,2543.1,22.50169181]
[1748045397417,0.17186977,2543.2,2543.1,23.28798181]
[1748045397616,9.77e-06,2543.2,2543.1,23.28798181]
[1748045397820,8.38450215,2543.4,2543.3,0.78623]
[1748045398021,18.38449165,2543.4,2543.1,4.78069181]
[1748045398325,0.31590206,2543.2,2543.1,4.78069181]
[1748045398714,15.31589156,2543.2,2543.1,4.78069181]
[1748045398919,15.31589156,2543.2,2543.1,3.2078]
[1748045399718,16.10215156,2543.2,2543.1,3.2078]
[1748045399920,0.31590206,2542.6,2542.5,12.09664298]
[1748045400120,0.31590206,2542.6,2542.5,3.2078]
[1748045400324,6.10235206,2542.6,2542.5,3.2078]
[1748045400519,5.0,2542.6,2542.1,2.34503808]
[1748045400825,5.0,2542.6,2541.4,6.33451744]
[1748045400826,0.31590206,2542.2,2541.4,3.2078]
[1748045401228,23.222,2542.3,2541.4,3.2078]
[1748045401229,0.31590206,2541.5,2541.4,3.2078]
[1748045401926,0.31590206,2541.5,2541.2,0.00590261]
[1748045402129,0.78682,2541.4,2541.2,0.00590261]
[1748045402330,0.31590206,2541.3,2541.2,0.00590261]
[1748045403223,0.78665,2542.0,2541.5,0.78677]
[1748045403428,0.31590206,2541.4,2541.3,0.78682]
[1748045403622,0.7867,2541.8,2541.3,0.78683]
[1748045403824,0.31590206,2541.4,2541.2,3.21370261]
[1748045404024,0.31590206,2541.3,2541.2,3.21370261]
[1748045404333,1.10275206,2541.3,2541.2,0.00590261]
[1748045404727,0.31590206,2541.3,2541.2,0.00590261]
[1748045405029,1.10275206,2541.3,2541.2,0.00590261]
[1748045405433,6.10275206,2541.3,2541.2,0.00590261]
[1748045406235,0.78697,2540.9,2540.8,3.2078]
[1748045406436,0.31590206,2540.9,2540.8,3.2078]
[1748045406734,0.31590206,2540.9,2540.2,17.709]
[1748045406735,3.52370206,2540.9,2540.2,3.2078]
[1748045407031,0.31590206,2540.6,2540.3,1.9206]
[1748045407334,0.31590206,2540.4,2540.2,3.21370261]
[1748045407527,0.31590206,2540.6,2540.2,3.21370261]
[1748045407840,0.31590206,2540.4,2540.3,1.9206]
[1748045408131,0.31590206,2540.6,2540.3,1.9206]
[1748045408343,0.32180467,2540.7,2540.5,3.99488]
[1748045408522,0.00590261,2540.7,2540.2,3.21370261]
[1748045408724,0.31590206,2540.3,2540.2,3.21370261]
[1748045408922,1.10304206,2540.4,2540.2,3.21370261]
[1748045409127,0.31590206,2540.4,2540.2,4.00088261]
[1748045409332,0.78712,2540.5,2540.2,3.21370261]
[1748045409528,0.31590206,2540.4,2540.2,3.21370261]
[1748045409728,0.31590206,2540.3,2540.2,3.21370261]
[1748045409929,2.97246206,2540.3,2540.2,3.21370261]
[1748045410126,2.18530206,2540.3,2540.2,3.21370261]
[1748045410438,2.97246206,2540.3,2540.2,3.21370261]
[1748045410634,2.18530206,2540.3,2540.2,3.21370261]
[1748045410833,0.00590261,2540.7,2540.2,3.21370261]
[1748045411135,0.31590206,2540.3,2540.2,3.21370261]
[1748045411934,2.21670206,2540.3,2540.2,3.21370261]
[1748045412234,0.00590261,2540.7,2540.2,3.21370261]
[1748045412435,1.10306206,2540.3,2540.2,3.21370261]
[1748045412735,0.31590206,2540.3,2540.2,3.21370261]
[1748045413336,1.9008,2540.6,2540.3,0.78714]
[1748045413539,1.9008,2540.6,2540.4,0.78711]
[1748045413733,0.31590206,2540.4,2540.2,3.21370261]
[1748045413930,0.31590206,2540.4,2540.3,0.78716]
[1748045414138,1.9008,2540.6,2540.5,0.7871]
[1748045414440,0.31590206,2540.4,2540.3,1.8513]
[1748045414634,0.31590206,2540.4,2540.2,4.00086261]
[1748045414835,0.31590206,2540.4,2540.2,3.21370261]
[1748045415047,0.31590206,2540.4,2540.3,0.78716]
[1748045415239,0.31590206,2540.3,2540.2,3.21370261]
[1748045415534,0.31590206,2540.5,2540.4,0.78713]
[1748045415737,2.68788,2540.6,2540.4,0.78712]
[1748045415938,2.21670206,2540.6,2540.5,0.7871]
[1748045416134,2.21670206,2540.6,2540.5,3.9949]
[1748045416630,2.21670206,2540.6,2540.5,3.2078]
[1748045416830,0.78716,2540.3,2540.2,3.21370261]
[1748045417029,1.10306206,2540.3,2540.2,3.21370261]
[1748045417445,0.31590206,2540.3,2540.2,4.00089261]
[1748045417736,2.68787,2540.6,2540.2,3.21370261]
[1748045417937,2.68787,2540.6,2540.4,0.78712]
[1748045418339,0.78715,2540.4,2540.2,3.21370261]
[1748045418538,0.78713,2540.4,2540.3,1.57487271]
[1748045418932,1.10303206,2540.4,2540.3,1.57487271]
[1748045419537,0.78733,2539.8,2539.6,3.99517]
[1748045419741,0.78741,2539.5,2539.4,2.34503808]
[1748045420139,1.10331206,2539.5,2539.4,2.34503808]
[1748045420342,0.31590206,2539.5,2539.4,2.34503808]
[1748045421036,1.10331206,2539.5,2539.4,2.34503808]
[1748045421638,0.78747,2539.3,2539.2,0.00590261]
[1748045421842,1.10337206,2539.3,2539.2,0.00590261]
[1748045423135,6.10337206,2539.3,2539.2,0.00590261]
[1748045423335,0.78763,2538.8,2538.6,2.34503808]
[1748045423536,1.10356206,2538.7,2538.6,2.34503808]
[1748045424443,4.31136206,2538.7,2538.6,2.34503808]
[1748045424835,9.31136206,2538.7,2538.6,2.34503808]
[1748045425035,0.78772,2538.5,2538.4,0.00590261]
[1748045425241,1.10362206,2538.5,2538.4,0.00590261]
[1748045426440,0.31590206,2538.5,2538.4,0.79365261]
[1748045426748,1.10362206,2538.5,2538.4,0.00590261]
[1748045428041,1.72430261,2538.9,2538.4,0.00590261]
[1748045428236,0.31590206,2538.6,2538.5,0.78772]
[1748045428437,1.72430261,2538.9,2538.5,1.8368]
[1748045428642,0.78772,2538.5,2538.4,0.00590261]
[1748045428847,0.31590206,2538.5,2538.4,0.00590261]
[1748045429838,1.10362206,2538.5,2538.4,0.00590261]
[1748045430353,6.10362206,2538.5,2538.4,0.00590261]
[1748045431551,1.10362206,2538.5,2538.4,0.00590261]
[1748045431951,6.10362206,2538.5,2538.4,0.00590261]
[1748045432652,6.10362206,2538.5,2538.4,1.58223001]
[1748045434141,0.78784,2538.1,2538.0,1.54228238]
[1748045434343,0.78803,2537.5,2537.4,3.12671744]
[1748045434541,4.31173206,2537.5,2537.4,3.12671744]
[1748045435144,11.13033206,2537.5,2537.4,3.12671744]
[1748045435349,11.8621,2537.5,2537.0,4.6965668]
[1748045435644,3.99595,2537.1,2537.0,3.9083968]
[1748045435851,25.5648,2537.1,2537.0,4.6965768]
[1748045436053,25.5648,2537.1,2537.0,0.78818]
[1748045436342,3.2078,2537.1,2537.0,0.78818]
[1748045437055,0.00590261,2537.3,2537.2,0.78812]
[1748045437956,0.00590261,2537.3,2537.1,0.78814]
[1748045438149,1.83350261,2537.3,2536.8,3.416]
[1748045438455,1.83350261,2537.3,2537.2,0.78812]
[1748045438656,0.00590261,2537.3,2536.2,1.97107]
[1748045438861,25.5678,2537.2,2537.0,0.78817]
[1748045439157,3.99593,2537.2,2536.7,1.8496]
[1748045439358,3.99593,2537.2,2536.8,0.78824]
[1748045439556,4.9055,2537.2,2536.9,1.8496]
[1748045439756,5.69365,2537.2,2536.9,1.8496]
[1748045439955,4.9055,2537.2,2536.9,1.8496]
[1748045440162,0.00590261,2537.3,2537.2,0.78812]
[1748045441561,3.2078,2537.9,2537.8,0.78794]
[1748045442862,3.99572,2537.9,2537.6,0.78798]
[1748045443158,3.99572,2537.9,2537.4,1.8496]
[1748045443460,3.2078,2537.9,2537.8,0.78794]
[1748045443753,3.2078,2537.9,2537.4,1.8496]
[1748045443957,0.78795,2537.8,2537.5,0.78801]
[1748045444161,0.78812,2537.2,2537.1,17.733]
[1748045444356,3.2078,2537.3,2537.0,0.00590261]
[1748045444753,3.2078,2537.3,2537.2,0.78812]
[1748045445057,3.99592,2537.3,2537.0,0.00590261]
[1748045445262,3.2078,2537.3,2537.2,0.78812]
[1748045445956,1.7312,2537.9,2537.8,0.78794]
[1748045445957,3.2078,2537.9,2537.8,0.78794]
[1748045446264,0.00590261,2538.1,2538.0,0.78787]
[1748045448268,0.00590261,2538.1,2538.0,2.31301812]
[1748045449965,0.79374261,2538.1,2538.0,1.52514812]
[1748045450161,1.76360261,2538.1,2538.0,2.31301812]
[1748045450466,1.76360261,2538.1,2538.0,1.52514812]
[1748045450766,0.08139887,2538.1,2538.0,2.31301812]
[1748045451768,1.7691,2538.8,2538.7,0.78766]
[1748045452072,3.2078,2539.0,2538.9,0.78759]
[1748045452268,3.2078,2539.0,2538.8,0.7876]
[1748045452466,3.2078,2539.0,2538.9,2.56059]
[1748045452869,3.2078,2539.0,2538.9,1.773]
[1748045453264,3.99536,2539.0,2538.9,1.773]
[1748045453665,3.99536,2539.0,2538.9,3.29814812]
[1748045453867,3.99536,2539.0,2538.9,1.52514812]
[1748045455972,8.99536,2539.0,2538.9,1.52514812]
[1748045456275,10.67256,2539.0,2538.9,1.52514812]
[1748045457078,32.08856,2539.0,2538.9,1.52514812]
[1748045457777,32.08856,2539.0,2538.5,2.32518324]
[1748045457778,31.301,2539.0,2538.5,2.32518324]
[1748045457977,3.99549,2538.6,2538.5,2.32518324]
[1748045458786,8.99549,2538.6,2538.5,2.32518324]
[1748045459079,3.99549,2538.6,2538.5,2.32518324]
[1748045459274,3.2078,2538.6,2538.5,3.11290324]
[1748045459474,3.2078,2538.6,2538.5,0.78772]
[1748045459682,3.99549,2538.6,2538.5,0.78772]
[1748045459980,0.78772,2538.5,2538.4,1.748]
[1748045460181,3.2078,2538.6,2538.4,1.748]
[1748045460182,3.99551,2538.6,2538.4,1.748]
[1748045460384,3.2078,2539.0,2538.5,1.9693]
[1748045460676,0.78766,2538.7,2538.6,1.7373]
[1748045461182,3.99546,2538.7,2538.6,1.7373]
[1748045461369,0.78775,2538.4,2538.3,2.33108585]
[1748045461773,0.78806,2537.4,2537.1,3.2078]
[1748045461975,3.99586,2537.4,2537.2,1.7373]
[1748045462377,1.7004,2537.6,2537.2,1.7373]
[1748045462573,3.28329626,2538.1,2538.0,0.78787]
[1748045462779,0.07549626,2538.1,2537.4,24.64623]
[1748045463079,0.07549626,2538.1,2537.7,1.7373]
[1748045463278,0.07549626,2538.1,2538.0,3.99567]
[1748045463477,0.00590261,2538.3,2538.2,0.78781]
[1748045463882,0.00590261,2538.3,2538.2,5.78781]
[1748045464474,0.00590261,2538.3,2538.2,7.33990248]
[1748045465386,3.2078,2539.1,2538.9,0.78758]
[1748045465579,5.75284,2539.1,2538.5,1.96926]
[1748045465778,4.9653,2539.1,2538.6,1.7776]
[1748045466282,0.78763,2538.8,2538.6,3.4248]
[1748045466481,0.78763,2538.8,2538.7,1.6984]
[1748045466682,4.97120261,2539.1,2538.7,1.6984]
[1748045466985,3.21370261,2539.1,2538.7,1.6984]
[1748045467276,3.21370261,2539.1,2538.9,0.78757]
[1748045467483,3.21370261,2539.1,2539.0,1.6984]
[1748045467878,3.21370261,2539.1,2538.8,0.78762]
[1748045468072,4.82400261,2539.1,2538.9,2.48599]
[1748045468283,4.82400261,2539.1,2539.0,0.78756]
[1748045468472,0.00590261,2539.1,2539.0,2.48596]
[1748045468672,3.2078,2539.4,2539.0,6.6984]
[1748045468882,3.2078,2539.4,2539.3,0.78747]
[1748045469581,3.2078,2539.4,2539.3,18.51647]
[1748045469779,0.00590261,2539.6,2539.5,0.78741]
[1748045469982,3.2078,2540.6,2539.5,24.6208]
[1748045470190,0.07872466,2540.5,2540.4,0.78712]
[1748045471077,0.07872466,2540.5,2540.2,3.3414]
[1748045471281,1.78962466,2540.5,2540.2,2.44548]
[1748045471484,0.07872466,2540.5,2540.4,0.78713]
[1748045471884,0.07872466,2540.5,2540.4,2.44543]
[1748045472186,0.00590261,2540.7,2540.4,1.6583]
[1748045472387,0.00590261,2540.7,2540.6,0.78707]
[1748045474191,3.2078,2541.5,2540.6,5.0]
[1748045474488,0.78667,2541.9,2541.3,3.2078]
[1748045474789,1.6035,2541.8,2541.4,2.4967]
[1748045474980,1.6035,2541.8,2541.3,3.2078]
[1748045475183,3.2078,2541.5,2541.3,0.00590261]
[1748045475381,2.39034,2541.4,2541.3,0.00590261]
[1748045476090,1.6035,2541.4,2541.3,0.00590261]
[1748045476385,0.78677,2541.6,2541.3,0.00590261]
[1748045476588,1.7445,2541.4,2541.3,0.00590261]
[1748045476782,0.79260261,2541.8,2541.3,0.00590261]
[1748045476982,1.75040261,2541.8,2541.3,0.00590261]
[1748045477496,1.75040261,2541.8,2541.7,0.78673]
[1748045478088,1.75040261,2541.8,2541.6,0.78674]
[1748045478292,1.75040261,2541.8,2541.7,0.78673]
[1748045478689,1.75040261,2541.8,2541.4,1.7298]
[1748045478890,2.53712261,2541.8,2541.4,2.51661]
[1748045479191,0.78674,2541.7,2541.4,1.7298]
[1748045479493,1.6076,2541.6,2541.4,2.51659]
[1748045479893,1.6076,2541.6,2541.5,0.78679]
[1748045480193,1.6076,2541.6,2541.3,0.00590261]
[1748045480386,0.78682,2541.4,2541.3,0.00590261]
[1748045480589,3.99462,2541.4,2541.3,0.00590261]
[1748045480786,30.39162,2541.4,2541.3,0.00590261]
[1748045481095,0.7869,2541.2,2540.9,0.78696]
[1748045481297,1.6076,2541.1,2541.0,0.78692]
[1748045481591,0.78699,2540.9,2540.6,1.7573]
[1748045481894,21.397,2541.4,2540.6,3.72491]
[1748045482093,1.5636,2541.0,2540.9,0.78697]
[1748045482596,0.78684,2541.4,2541.1,0.7869]
[1748045482788,1.5636,2541.4,2540.9,1.5229]
[1748045482984,3.2078,2541.2,2540.5,0.00590261]
[1748045483188,0.78707,2540.6,2540.5,0.00590261]
[1748045483685,2.35067,2540.6,2540.5,0.00590261]
[1748045483892,7.35067,2540.6,2540.5,0.00590261]
[1748045484092,5.60617,2540.6,2540.5,0.00590261]